bitfinex/quotes_BTCUSD_20220207
["timestamp","ask_amount","ask_price","bid_price","bid_amount"]
[1644220648071,0.3,42742.0,42732.0,0.00026]
[1644220648270,0.0468,42741.0,42732.0,0.00026]
[1644220648470,0.0468,42741.0,42728.0,0.2510493]
[1644220648471,1.487239,42740.0,42728.0,0.2510493]
[1644220648670,0.0468,42739.0,42726.0,0.2521493]
[1644220648870,0.058522,42736.0,42729.0,0.25768933]
[1644220649071,0.0468,42735.0,42729.0,0.25768933]
[1644220649571,0.108522,42736.0,42729.0,0.25768933]
[1644220649572,0.065522,42736.0,42730.0,0.327239]
[1644220649770,0.0468,42735.0,42730.0,0.327239]
[1644220650174,0.0468,42735.0,42733.0,0.07129286]
[1644220650670,0.007,42736.0,42733.0,0.07129286]
[1644220650869,0.0468,42740.0,42733.0,0.07129286]
[1644220650870,0.327239,42739.0,42733.0,0.07129286]
[1644220651119,0.05,42740.0,42733.0,0.07129286]
[1644220651321,0.058503,42742.0,42737.0,0.2522178]
[1644220651523,0.004,42739.0,42737.0,0.2522178]
[1644220651925,0.004,42739.0,42738.0,0.327239]
[1644220652419,0.004,42739.0,42737.0,0.2522178]
[1644220652821,0.1595269,42745.0,42740.0,0.3419121]
[1644220653021,0.3,42748.0,42740.0,0.3419121]
[1644220653221,0.05,42748.0,42740.0,0.3419121]
[1644220653623,0.28925444,42747.0,42740.0,0.01]
[1644220653824,0.327239,42746.0,42740.0,0.01]
[1644220654022,0.05,42747.0,42740.0,0.0936655]
[1644220654223,0.012,42748.0,42741.0,0.3]
[1644220654529,0.012,42748.0,42742.0,0.42312746]
[1644220654721,0.0001,42750.0,42742.0,0.75036646]
[1644220654966,0.0001,42750.0,42743.0,0.2497028]
[1644220655169,0.0001,42750.0,42749.0,0.05]
[1644220655365,0.0001,42750.0,42749.0,0.377258]
[1644220655864,0.0001,42750.0,42749.0,0.427258]
[1644220656067,0.0001,42750.0,42749.0,0.68944612]
[1644220656464,0.0001,42750.0,42749.0,0.9928112]
[1644220657566,0.0001,42750.0,42749.0,1.0278112]
[1644220658166,0.2301,42750.0,42749.0,1.0278112]
[1644220658365,0.2301,42750.0,42749.0,1.40620571]
[1644220658366,0.13748331,42750.0,42749.0,1.40620571]
[1644220658620,0.09000124,42750.0,42749.0,1.40620571]
[1644220658820,0.09000124,42750.0,42749.0,1.37120571]
[1644220659018,0.09000124,42750.0,42749.0,1.95620571]
[1644220659724,0.09000124,42750.0,42749.0,2.30126032]
[1644220659920,0.09000124,42750.0,42749.0,2.72126032]
[1644220660122,0.09000124,42750.0,42749.0,3.12126032]
[1644220660322,0.09000124,42750.0,42749.0,2.81789524]
[1644220660522,0.09000124,42750.0,42749.0,2.41789524]
[1644220660724,0.09000124,42750.0,42749.0,2.17284063]
[1644220660923,0.09000124,42750.0,42749.0,2.07284063]
[1644220661323,0.09000124,42750.0,42749.0,2.02284063]
[1644220661522,0.09000124,42750.0,42749.0,1.00604063]
[1644220661926,0.09000124,42750.0,42749.0,0.95604063]
[1644220662865,0.09000124,42750.0,42749.0,0.92104063]
[1644220663567,0.09000124,42750.0,42749.0,0.95304063]
[1644220663966,0.09000124,42750.0,42749.0,0.312458]
[1644220664168,0.14000124,42750.0,42749.0,0.032]
[1644220664970,0.72553662,42750.0,42747.0,0.00066912]
[1644220665168,0.303765,42748.0,42747.0,0.00066912]
[1644220665467,0.37309119,42748.0,42740.0,0.3]
[1644220665668,0.37309119,42748.0,42747.0,0.014]
[1644220666718,0.47309119,42748.0,42747.0,0.014]
[1644220666915,0.47309119,42748.0,42731.0,2.70107129]
[1644220666916,0.47309119,42748.0,42745.0,0.00066855]
[1644220667521,0.48309119,42748.0,42745.0,0.02566855]
[1644220667918,0.52989119,42748.0,42745.0,0.025]
[1644220668321,0.42989119,42748.0,42745.0,0.025]
[1644220668721,0.42989119,42748.0,42744.0,0.00066856]
[1644220668722,0.41989119,42748.0,42744.0,0.00066856]
[1644220669122,0.41989119,42748.0,42739.0,0.21336587]
[1644220669423,0.41989119,42748.0,42744.0,0.00066856]
[1644220669624,0.011,42748.0,42744.0,0.03466856]
[1644220669875,0.011,42748.0,42746.0,0.327239]
[1644220670071,0.09000124,42750.0,42747.0,0.65]
[1644220670267,0.09000124,42750.0,42748.0,0.330432]
[1644220670669,0.09000124,42750.0,42749.0,1.10600408]
[1644220670873,0.09000124,42750.0,42749.0,1.18321808]
[1644220671069,0.09000124,42750.0,42749.0,0.90140524]
[1644220671667,0.09000124,42750.0,42749.0,0.93740524]
[1644220671866,0.09000124,42750.0,42749.0,1.21456433]
[1644220672870,0.09000124,42750.0,42749.0,1.17856433]
[1644220673618,0.09000124,42750.0,42749.0,1.21256433]
[1644220673821,0.09000124,42750.0,42749.0,0.93540524]
[1644220674024,0.09000124,42750.0,42749.0,0.99760915]
[1644220674223,0.34418,42783.0,42752.0,0.8]
[1644220674423,0.34418,42783.0,42780.0,0.05]
[1644220674424,0.5,42782.0,42780.0,0.05]
[1644220674627,0.34418,42783.0,42781.0,0.0468]
[1644220674823,0.34418,42783.0,42782.0,0.09646774]
[1644220675020,0.34418,42783.0,42782.0,0.44050674]
[1644220675021,0.001,42783.0,42782.0,0.44050674]
[1644220675227,0.37661216,42794.0,42783.0,0.75]
[1644220675423,0.37661216,42794.0,42784.0,0.0468]
[1644220675622,0.37161216,42794.0,42784.0,0.0468]
[1644220676022,0.002,42795.0,42784.0,0.0468]
[1644220676622,0.00059744,42792.0,42784.0,0.0468]
[1644220676823,0.00059744,42792.0,42785.0,0.2604194]
[1644220677023,0.23662481,42790.0,42785.0,0.2604194]
[1644220677224,0.00059744,42792.0,42782.0,0.24255391]
[1644220677472,0.002,42793.0,42782.0,0.05]
[1644220677673,0.002,42793.0,42785.0,0.012]
[1644220677874,0.00059744,42789.0,42785.0,0.012]
[1644220678470,0.22983405,42789.0,42785.0,0.012]
[1644220678671,0.22923661,42789.0,42785.0,0.012]
[1644220678871,0.327239,42788.0,42780.0,0.26163485]
[1644220679073,0.3402291,42786.0,42778.0,0.04950345]
[1644220679278,0.3402291,42786.0,42774.0,0.3902]
[1644220679279,0.3902291,42786.0,42774.0,0.3902]
[1644220679473,0.3902291,42786.0,42769.0,0.30067173]
[1644220679675,0.327239,42785.0,42778.0,0.02]
[1644220679875,0.447239,42785.0,42778.0,0.02]
[1644220680075,0.65920054,42779.0,42778.0,0.02]
[1644220680275,0.64967194,42779.0,42778.0,0.02]
[1644220680874,0.64967194,42779.0,42769.0,0.30049195]
[1644220680875,0.42243294,42779.0,42769.0,0.00049195]
[1644220681120,0.02,42778.0,42764.0,0.3]
[1644220681320,0.0468,42777.0,42769.0,0.00067085]
[1644220681519,0.058467,42775.0,42769.0,0.00667085]
[1644220681720,0.0468,42774.0,42769.0,0.00667085]
[1644220682318,0.0468,42774.0,42769.0,0.006]
[1644220682519,0.0468,42774.0,42769.0,0.00667084]
[1644220682718,0.47133588,42777.0,42776.0,0.04300376]
[1644220682922,0.47133588,42777.0,42769.0,0.00067084]
[1644220683125,0.043,42776.0,42769.0,0.00067084]
[1644220683522,0.043,42776.0,42769.0,0.004]
[1644220685069,0.24273663,42773.0,42769.0,0.004]
[1644220685268,0.70761445,42770.0,42769.0,0.004]
[1644220685468,0.75061445,42770.0,42769.0,0.004]
[1644220685671,0.75061445,42770.0,42754.0,0.39855738]
[1644220685869,0.47337545,42770.0,42754.0,0.39855738]
[1644220686068,0.47337545,42770.0,42761.0,0.05]
[1644220686069,0.53815845,42770.0,42761.0,0.05]
[1644220686269,0.53815845,42770.0,42759.0,0.24532304]
[1644220686270,0.327239,42769.0,42759.0,0.24532304]
[1644220686569,0.043,42768.0,42759.0,0.24532304]
[1644220686770,0.327239,42767.0,42759.0,0.24532304]
[1644220686970,0.043,42766.0,42759.0,0.24532304]
[1644220687471,0.25195842,42766.0,42760.0,0.00067094]
[1644220687772,0.30195842,42766.0,42760.0,0.00067094]
[1644220687970,0.093,42766.0,42760.0,0.00067094]
[1644220688175,0.093,42766.0,42763.0,0.05]
[1644220688177,0.043,42766.0,42763.0,0.05]
[1644220688374,0.043,42778.0,42763.0,0.05]
[1644220688624,0.00059461,42776.0,42764.0,0.27072553]
[1644220688823,0.00059461,42776.0,42762.0,0.00067092]
[1644220689022,0.21030458,42776.0,42767.0,0.23950286]
[1644220689223,0.00059461,42776.0,42767.0,0.23950286]
[1644220689427,0.00059461,42776.0,42773.0,0.05]
[1644220689727,0.02,42794.0,42774.0,0.327239]
[1644220689927,0.0005947,42776.0,42774.0,0.327239]
[1644220690125,0.0005947,42776.0,42774.0,0.21956629]
[1644220690324,0.0005947,42776.0,42769.0,0.05067083]
[1644220690528,0.0005947,42776.0,42769.0,0.32094586]
[1644220690727,0.0005947,42776.0,42769.0,0.05067083]
[1644220690925,0.00028636,42777.0,42775.0,0.05]
[1644220691125,0.23059472,42776.0,42775.0,0.05]
[1644220691325,0.28059472,42776.0,42775.0,0.377239]
[1644220691525,0.28059472,42776.0,42775.0,0.05]
[1644220691724,0.23059472,42776.0,42775.0,0.067]
[1644220691925,0.23059472,42776.0,42775.0,0.65013291]
[1644220692124,0.23,42776.0,42775.0,0.65013291]
[1644220692668,0.06741953,42776.0,42775.0,0.694239]
[1644220692869,0.00237844,42787.0,42777.0,0.279979]
[1644220693071,0.00237844,42787.0,42786.0,0.407151]
[1644220693272,0.002,42795.0,42787.0,0.75]
[1644220693273,0.00136484,42795.0,42787.0,0.75]
[1644220693469,0.00136484,42795.0,42794.0,0.05]
[1644220693470,0.001,42795.0,42794.0,0.05]
[1644220694070,0.001,42795.0,42794.0,0.35]
[1644220694268,0.001,42795.0,42787.0,0.05841092]
[1644220694570,0.001,42795.0,42781.0,0.21682308]
[1644220694571,0.001,42795.0,42786.0,0.018]
[1644220694769,0.044,42795.0,42786.0,0.018]
[1644220695070,0.37036729,42790.0,42781.0,0.05]
[1644220695268,0.116885,42791.0,42783.0,0.25472569]
[1644220695470,0.166885,42791.0,42783.0,0.25472569]
[1644220695671,0.166885,42791.0,42781.0,0.021]
[1644220695672,0.043,42790.0,42781.0,0.021]
[1644220695876,0.043,42790.0,42785.0,0.00067365]
[1644220695877,0.32774631,42789.0,42785.0,0.00067365]
[1644220696119,0.043,42788.0,42785.0,0.00067365]
[1644220696321,0.327159,42787.0,42785.0,0.00067365]
[1644220696524,1.09085905,42786.0,42785.0,0.00067365]
[1644220696721,1.26264272,42786.0,42785.0,0.00067365]
[1644220696921,0.327159,42785.0,42775.0,0.26772562]
[1644220697121,0.74447575,42786.0,42775.0,0.26772562]
[1644220697122,0.370159,42784.0,42783.0,0.00067367]
[1644220697421,0.520159,42784.0,42783.0,0.00067367]
[1644220697623,0.544159,42784.0,42783.0,0.00067367]
[1644220697921,0.67700829,42784.0,42783.0,0.00067367]
[1644220698123,0.29200161,42779.0,42765.0,0.3656]
[1644220698322,0.327159,42782.0,42781.0,0.00067369]
[1644220698723,0.68621741,42782.0,42781.0,0.00067369]
[1644220699224,0.68621741,42782.0,42763.0,0.33714343]
[1644220699225,1.04016114,42782.0,42763.0,0.22024343]
[1644220699423,0.11694,42778.0,42760.0,0.22698201]
[1644220699623,0.40360121,42777.0,42763.0,0.05]
[1644220699875,0.193,42777.0,42766.0,0.05]
[1644220700071,0.327159,42776.0,42766.0,0.08]
[1644220700270,0.043,42775.0,42768.0,0.25517602]
[1644220700471,0.327159,42774.0,42768.0,0.25517602]
[1644220700671,0.043,42773.0,42769.0,0.00067384]
[1644220700872,0.327159,42772.0,42769.0,0.00067384]
[1644220701076,0.043,42771.0,42769.0,0.00067384]
[1644220701274,0.1,42776.0,42769.0,0.00067384]
[1644220701275,0.043,42770.0,42769.0,0.00067384]
[1644220701671,0.043,42770.0,42769.0,0.007]
[1644220702971,0.043,42770.0,42768.0,0.25517602]
[1644220703373,0.043,42770.0,42768.0,0.30517602]
[1644220703627,0.043,42770.0,42768.0,0.27517602]
[1644220703823,0.043,42770.0,42768.0,0.02]
[1644220704628,0.327159,42769.0,42768.0,0.02]
[1644220704827,0.377159,42769.0,42768.0,0.02]
[1644220705426,0.377159,42769.0,42766.0,0.00067387]
[1644220705627,0.377159,42769.0,42768.0,0.009]
[1644220705628,0.059,42769.0,42768.0,0.009]
[1644220705827,0.009,42769.0,42768.0,0.009]
[1644220706927,0.45596648,42771.0,42766.0,0.00067387]
[1644220707570,0.50596648,42771.0,42765.0,0.05]
[1644220707769,0.50796648,42771.0,42766.0,0.01467387]
[1644220708772,0.50796648,42771.0,42766.0,0.014]
[1644220709070,0.50596648,42771.0,42766.0,0.00067387]
[1644220709671,0.62792019,42770.0,42766.0,0.01467387]
[1644220710072,0.62792019,42770.0,42766.0,0.014]
[1644220710270,0.62792019,42770.0,42766.0,0.01467387]
[1644220710471,0.72792019,42770.0,42766.0,0.01467387]
[1644220710772,0.98654866,42770.0,42766.0,0.01467387]
[1644220710970,1.06968682,42770.0,42766.0,0.00067387]
[1644220711223,1.06968682,42770.0,42760.0,0.05]
[1644220711523,1.06968682,42770.0,42766.0,0.00067387]
[1644220711524,0.327159,42767.0,42766.0,0.00067387]
[1644220711719,0.377159,42767.0,42766.0,0.00067387]
[1644220712319,0.477159,42767.0,42766.0,0.00067387]
[1644220712521,0.477159,42767.0,42760.0,0.05]
[1644220712721,0.327159,42765.0,42764.0,0.00067389]
[1644220712920,0.327159,42769.0,42764.0,0.00067389]
[1644220713321,0.45596648,42771.0,42766.0,0.05]
[1644220713521,0.23,42771.0,42767.0,0.05]
[1644220713920,0.23,42771.0,42766.0,0.00067387]
[1644220714125,0.23,42771.0,42767.0,0.19593239]
[1644220714320,0.23,42771.0,42766.0,0.00067387]
[1644220714522,0.327159,42770.0,42766.0,0.00067387]
[1644220715771,0.342159,42770.0,42766.0,0.00667387]
[1644220716170,0.342159,42770.0,42766.0,0.006]
[1644220716777,0.06356799,42768.0,42766.0,0.006]
[1644220717075,0.1955159,42765.0,42759.0,0.05]
[1644220717672,0.05,42764.0,42759.0,0.05]
[1644220717873,0.05,42764.0,42759.0,0.066]
[1644220718721,0.1975159,42765.0,42760.0,0.05]
[1644220718722,0.002,42765.0,42760.0,0.05]
[1644220719120,0.216928,42776.0,42760.0,0.05]
[1644220719519,0.28,42771.0,42760.0,0.05]
[1644220719720,0.25812488,42766.0,42760.0,0.062]
[1644220719920,0.25812488,42766.0,42763.0,0.00067294]
[1644220719921,0.33420286,42766.0,42763.0,0.00067294]
[1644220720820,0.33420286,42766.0,42760.0,0.062]
[1644220721021,0.25812488,42766.0,42762.0,0.00067295]
[1644220721221,0.25676488,42766.0,42762.0,0.00067295]
[1644220721825,0.25676488,42766.0,42762.0,0.00567295]
[1644220721826,0.27176488,42766.0,42762.0,0.00567295]
[1644220722022,0.27176488,42766.0,42762.0,0.005]
[1644220722222,0.27176488,42766.0,42762.0,0.00567296]
[1644220722473,0.06364,42766.0,42762.0,0.00567296]
[1644220722673,0.015,42766.0,42762.0,0.00567296]
[1644220723273,0.015,42766.0,42762.0,0.005]
[1644220723472,0.015,42766.0,42762.0,0.00567296]
[1644220723673,0.015,42766.0,42765.0,0.05]
[1644220724576,0.015,42766.0,42765.0,0.25466367]
[1644220724774,0.015,42766.0,42763.0,0.00067294]
[1644220724974,0.26318062,42769.0,42765.0,0.05]
[1644220725175,0.26318062,42769.0,42763.0,0.00067294]
[1644220725374,0.26318062,42769.0,42764.0,0.05]
[1644220725776,0.26318062,42769.0,42765.0,0.20784765]
[1644220726223,0.31318062,42769.0,42765.0,0.20784765]
[1644220727027,0.31318062,42769.0,42765.0,0.20852057]
[1644220727623,0.31318062,42769.0,42765.0,0.22352057]
[1644220728023,0.31318062,42769.0,42765.0,0.22284765]
[1644220728223,0.31318062,42769.0,42765.0,0.27352057]
[1644220728926,0.31318062,42769.0,42765.0,0.22352057]
[1644220729125,0.05,42769.0,42765.0,0.22352057]
[1644220729327,0.23,42771.0,42765.0,0.22352057]
[1644220729328,0.28,42771.0,42768.0,0.05]
[1644220729531,0.28,42771.0,42769.0,0.28346372]
[1644220729727,0.28,42771.0,42768.0,0.05]
[1644220729973,0.28,42771.0,42769.0,0.60647077]
[1644220730174,0.28,42771.0,42769.0,0.377159]
[1644220730571,0.28,42771.0,42769.0,0.05]
[1644220731774,0.28,42771.0,42769.0,0.062]
[1644220732976,0.28,42771.0,42769.0,0.05]
[1644220733833,0.28,42771.0,42769.0,0.066]
[1644220735133,0.28,42771.0,42769.0,0.016]
[1644220735536,0.63998389,42770.0,42768.0,0.00062313]
[1644220735734,0.63998389,42770.0,42769.0,0.009]
[1644220736336,0.327159,42770.0,42769.0,0.009]
[1644220736539,0.28,42771.0,42769.0,0.009]
[1644220736736,0.28,42771.0,42770.0,0.327159]
[1644220736937,0.23,42771.0,42770.0,0.327159]
[1644220737388,0.00028644,42780.0,42779.0,0.22232248]
[1644220737677,0.26583437,42783.0,42778.0,0.05]
[1644220737678,0.32456781,42783.0,42778.0,0.05]
[1644220737876,0.00028644,42782.0,42778.0,0.05]
[1644220738077,0.26583437,42783.0,42778.0,0.05]
[1644220738279,0.00028644,42782.0,42778.0,0.05]
[1644220738477,0.26583437,42783.0,42778.0,0.05]
[1644220738678,0.37516065,42791.0,42780.0,2.21908177]
[1644220738679,0.00028644,42782.0,42780.0,2.21908177]
[1644220738880,0.00028644,42783.0,42781.0,0.66796257]
[1644220739179,0.058441,42788.0,42782.0,0.2655361]
[1644220739479,0.00028644,42787.0,42782.0,0.2655361]
[1644220739679,0.3270906,42788.0,42782.0,0.2655361]
[1644220739980,0.3270906,42788.0,42782.0,0.2765361]
[1644220739981,0.00028644,42787.0,42782.0,0.2765361]
[1644220740180,0.32737704,42788.0,42782.0,0.2765361]
[1644220740378,0.00028644,42787.0,42783.0,0.00066954]
[1644220740579,0.058441,42788.0,42783.0,0.00066954]
[1644220740777,0.00028644,42787.0,42783.0,0.00066954]
[1644220740978,0.05872744,42788.0,42783.0,0.00066954]
[1644220741223,0.00028644,42787.0,42782.0,0.2655361]
[1644220741421,0.27770123,42788.0,42783.0,0.00066953]
[1644220741622,0.00028644,42787.0,42783.0,0.00066953]
[1644220741823,0.27741479,42788.0,42783.0,0.00066953]
[1644220742021,0.00028644,42787.0,42783.0,0.00066953]
[1644220742222,0.32770123,42788.0,42783.0,0.00066953]
[1644220742423,0.32770123,42788.0,42782.0,0.011]
[1644220742424,0.00028644,42787.0,42782.0,0.011]
[1644220742628,0.32770123,42788.0,42783.0,0.00066953]
[1644220742823,0.00028644,42787.0,42783.0,0.00066953]
[1644220743127,0.30345431,42789.0,42783.0,0.00066953]
[1644220743722,0.30286942,42789.0,42783.0,0.008]
[1644220743922,0.30345431,42789.0,42784.0,0.00066953]
[1644220744123,0.058441,42788.0,42784.0,0.00066953]
[1644220744323,0.108441,42788.0,42784.0,0.00066953]
[1644220744972,0.108441,42788.0,42780.0,2.21908177]
[1644220745175,0.108441,42788.0,42784.0,0.00066953]
[1644220745771,0.108441,42788.0,42784.0,0.00866953]
[1644220746073,0.108441,42788.0,42784.0,0.008]
[1644220746373,0.108441,42788.0,42784.0,0.00866953]
[1644220746374,0.338441,42788.0,42784.0,0.00866953]
[1644220747377,0.338441,42788.0,42784.0,0.008]
[1644220747576,0.338441,42788.0,42784.0,0.00866953]
[1644220747779,0.338441,42788.0,42784.0,0.00766953]
[1644220748820,0.388441,42788.0,42784.0,0.00766953]
[1644220749021,0.2031372,42787.0,42784.0,0.00066953]
[1644220749221,0.388441,42788.0,42784.0,0.00066953]
[1644220749622,0.388441,42788.0,42780.0,2.21908177]
[1644220749821,0.338441,42788.0,42784.0,0.007]
[1644220750023,0.338441,42788.0,42784.0,0.00749404]
[1644220750822,0.388441,42788.0,42784.0,0.00749404]
[1644220751025,0.327159,42787.0,42774.0,0.26470108]
[1644220751224,0.116891,42786.0,42784.0,0.00049404]
[1644220751523,0.327159,42785.0,42784.0,0.00049404]
[1644220751723,0.327159,42785.0,42784.0,0.00749404]
[1644220751924,0.67373281,42785.0,42784.0,0.00749404]
[1644220752125,0.72373281,42785.0,42784.0,0.007]
[1644220752976,0.72373281,42785.0,42782.0,0.00066918]
[1644220753173,0.327159,42784.0,42782.0,0.00066918]
[1644220753373,0.377159,42784.0,42774.0,0.20994788]
[1644220753572,0.05,42784.0,42781.0,0.00066919]
[1644220753774,0.327159,42782.0,42781.0,0.00066919]
[1644220754175,0.45512268,42782.0,42781.0,0.00066919]
[1644220754674,0.45512268,42782.0,42779.0,0.00066921]
[1644220754675,0.12796368,42782.0,42779.0,0.00066921]
[1644220754875,0.327159,42781.0,42779.0,0.00066921]
[1644220755480,0.327159,42785.0,42779.0,0.00066921]
[1644220755675,0.327159,42785.0,42775.0,0.05]
[1644220755875,0.01,42781.0,42779.0,0.008]
[1644220756924,0.01,42781.0,42779.0,0.058]
[1644220757126,0.327159,42784.0,42779.0,0.05]
[1644220757827,0.338159,42784.0,42779.0,0.007]
[1644220758325,0.338159,42784.0,42779.0,0.05766921]
[1644220758527,0.011,42784.0,42783.0,0.26785033]
[1644220759126,0.10872997,42786.0,42783.0,0.26785033]
[1644220759127,0.05872997,42786.0,42783.0,0.26785033]
[1644220759327,0.05872997,42786.0,42780.0,0.26225178]
[1644220759328,0.058444,42786.0,42780.0,0.26225178]
[1644220759529,0.00028597,42786.0,42780.0,0.26225178]
[1644220760273,0.327159,42787.0,42780.0,0.26225178]
[1644220760474,0.32744497,42787.0,42780.0,0.26225178]
[1644220760678,0.327159,42785.0,42780.0,0.26225178]
[1644220760874,0.05,42785.0,42780.0,0.26225178]
[1644220761275,0.00028597,42785.0,42780.0,0.26225178]
[1644220761475,0.00028597,42786.0,42782.0,0.05]
[1644220761675,0.00028597,42787.0,42782.0,0.05]
[1644220761875,0.327159,42787.0,42780.0,0.006]
[1644220762077,0.32744497,42787.0,42782.0,0.00049413]
[1644220762977,0.32744497,42787.0,42779.0,0.05]
[1644220763181,0.32744497,42787.0,42782.0,0.00049413]
[1644220763826,0.23846118,42783.0,42782.0,0.00449413]
[1644220764027,0.8492617,42783.0,42782.0,0.00449413]
[1644220764227,0.8992617,42783.0,42782.0,0.004]
[1644220764629,1.24046013,42783.0,42782.0,0.004]
[1644220764827,1.19366013,42783.0,42782.0,0.004]
[1644220765027,0.327159,42781.0,42780.0,0.00066915]
[1644220765229,0.62045168,42781.0,42780.0,0.00066915]
[1644220765429,0.06560283,42775.0,42772.0,0.23671957]
[1644220766030,0.06560283,42775.0,42770.0,0.20005461]
[1644220766632,0.06560283,42775.0,42770.0,0.20072387]
[1644220767031,0.06560283,42775.0,42770.0,0.45899171]
[1644220767474,0.29831685,42781.0,42771.0,0.20005461]
[1644220767875,0.014,42781.0,42775.0,0.05]
[1644220768072,0.014,42781.0,42774.0,0.00066922]
[1644220768475,0.01368864,42781.0,42777.0,0.05]
[1644220768673,0.01368864,42781.0,42774.0,0.00066922]
[1644220768873,0.01368864,42781.0,42771.0,0.25005461]
[1644220769075,0.01368864,42781.0,42775.0,0.00064242]
[1644220769275,0.24368864,42781.0,42775.0,0.00064242]
[1644220769675,0.5322987,42781.0,42775.0,0.00064242]
[1644220769875,0.327159,42780.0,42775.0,0.00064242]
[1644220770178,0.07194562,42778.0,42771.0,0.20005461]
[1644220770377,0.07194562,42778.0,42775.0,0.00064242]
[1644220770577,0.12194562,42778.0,42775.0,0.00064242]
[1644220771421,0.12194562,42778.0,42771.0,0.20005461]
[1644220771624,0.29058384,42777.0,42774.0,0.00064243]
[1644220771825,0.327159,42776.0,42774.0,0.00064243]
[1644220772027,0.377159,42776.0,42774.0,0.00064243]
[1644220772225,0.627159,42775.0,42774.0,0.00064243]
[1644220772423,0.427159,42775.0,42774.0,0.00064243]
[1644220772624,0.06798774,42767.0,42763.0,0.26371502]
[1644220772824,0.06798774,42767.0,42762.0,0.40254841]
[1644220772825,0.35212333,42770.0,42762.0,0.2024938]
[1644220773025,0.327159,42774.0,42773.0,0.18259275]
[1644220773224,0.377159,42774.0,42773.0,0.18259275]
[1644220773425,0.477159,42774.0,42773.0,0.18259275]
[1644220773627,0.327159,42774.0,42773.0,0.18259275]
[1644220774024,0.45810344,42774.0,42773.0,0.18259275]
[1644220774224,0.48810344,42774.0,42773.0,0.18259275]
[1644220776372,0.53810344,42774.0,42773.0,0.18259275]
[1644220776971,0.38810344,42774.0,42773.0,0.18259275]
[1644220777172,0.307159,42774.0,42773.0,0.18259275]
[1644220777373,0.01368864,42781.0,42773.0,0.4559055]
[1644220777573,0.01368864,42781.0,42773.0,0.18259275]
[1644220777771,0.01368864,42781.0,42774.0,0.20680126]
[1644220778170,0.21846119,42777.0,42774.0,0.20680126]
[1644220778623,0.01368864,42781.0,42774.0,0.47125178]
[1644220778828,0.01368864,42781.0,42777.0,0.05]
[1644220779123,0.01368864,42781.0,42778.0,0.26143659]
[1644220779328,0.01368864,42781.0,42775.0,0.28018791]
[1644220779724,0.20070789,42778.0,42775.0,0.28018791]
[1644220779925,0.20070789,42778.0,42776.0,0.00066823]
[1644220780125,0.20070789,42778.0,42775.0,0.05085614]
[1644220780326,0.20070789,42778.0,42774.0,0.05]
[1644220780526,0.20070789,42778.0,42773.0,0.18259275]
[1644220782024,0.06473749,42777.0,42773.0,0.18259275]
[1644220782478,0.18165549,42777.0,42773.0,0.18308626]
[1644220782677,0.327195,42776.0,42773.0,0.18308626]
[1644220783076,0.53418258,42776.0,42773.0,0.18308626]
[1644220783280,0.53418258,42776.0,42773.0,0.18259275]
[1644220784279,0.327195,42776.0,42773.0,0.18259275]
[1644220784978,0.058458,42776.0,42773.0,0.18259275]
[1644220785382,0.06473749,42777.0,42773.0,0.18259275]
[1644220785580,0.06473749,42777.0,42774.0,0.023]
[1644220785780,0.06473749,42777.0,42774.0,0.28797797]
[1644220785978,0.06473749,42777.0,42774.0,0.023]
[1644220791375,0.29473749,42777.0,42774.0,0.023]
[1644220791672,0.327195,42776.0,42774.0,0.023]
[1644220793275,0.427195,42776.0,42774.0,0.023]
[1644220793473,0.477195,42776.0,42774.0,0.023]
[1644220793736,0.327195,42776.0,42774.0,0.023]
[1644220793938,0.385663,42776.0,42774.0,0.023]
[1644220794136,0.327195,42775.0,42774.0,0.023]
[1644220796339,0.377195,42775.0,42774.0,0.023]
[1644220796539,0.477195,42775.0,42774.0,0.023]
[1644220797142,0.477195,42775.0,42774.0,0.241316]
[1644220798072,0.327195,42775.0,42774.0,0.241316]
[1644220798272,0.377195,42775.0,42774.0,0.241316]
[1644220798672,0.477195,42775.0,42774.0,0.241316]
[1644220799475,0.327195,42775.0,42774.0,0.241316]
[1644220801927,0.377195,42775.0,42774.0,0.241316]
[1644220802127,0.32791539,42775.0,42774.0,0.241316]
[1644220802330,0.37791539,42775.0,42774.0,0.241316]
[1644220802927,0.31791539,42775.0,42774.0,0.241316]
[1644220803329,0.41791539,42775.0,42774.0,0.241316]
[1644220804331,0.46791539,42775.0,42774.0,0.241316]
[1644220804531,0.76840969,42775.0,42774.0,0.241316]
[1644220805375,0.66840969,42775.0,42774.0,0.241316]
[1644220806177,0.76840969,42775.0,42774.0,0.23480839]
[1644220806977,0.76840969,42775.0,42773.0,0.18259275]
[1644220806978,0.76840969,42775.0,42773.0,0.06658114]
[1644220807176,0.60895862,42774.0,42773.0,0.06658114]
[1644220807376,0.92033381,42774.0,42773.0,0.06658114]
[1644220809224,0.92033381,42774.0,42773.0,0.1825827]
[1644220809426,0.92033381,42774.0,42773.0,0.29858428]
[1644220810626,0.75967901,42774.0,42773.0,0.29858428]
[1644220811427,0.47791539,42774.0,42773.0,0.29858428]
[1644220812478,0.47791539,42774.0,42761.0,0.26501616]
[1644220812677,0.47791539,42774.0,42756.0,0.05019962]
[1644220812678,0.23858618,42761.0,42756.0,0.05019962]
[1644220812883,0.23875058,42763.0,42760.0,0.05]
[1644220813076,0.28875058,42763.0,42760.0,0.05]
[1644220813878,0.37820385,42763.0,42760.0,0.05]
[1644220814079,0.37820385,42763.0,42759.0,0.00066669]
[1644220814279,0.42820385,42763.0,42759.0,0.00066669]
[1644220814683,0.00072039,42761.0,42759.0,0.00066619]
[1644220815782,0.00072039,42761.0,42756.0,0.23943183]
[1644220815984,0.00072039,42761.0,42758.0,0.0006662]
[1644220816225,0.33875058,42763.0,42758.0,0.0006662]
[1644220816925,0.11695,42762.0,42756.0,0.23943183]
[1644220817127,0.08579775,42762.0,42758.0,0.0006662]
[1644220817328,0.13579775,42762.0,42758.0,0.0006662]
[1644220817724,0.00072039,42760.0,42756.0,0.23659396]
[1644220818127,0.18579775,42762.0,42756.0,0.23659396]
[1644220818325,0.058474,42761.0,42756.0,0.23659396]